Cogmind - Beta 12 @@@ ROGUE MODE // 2023.04.17 @ 23:35:42 Player: Mr Goldstein Result: Self-destructed Performance ------------- Evolutions (3) 1500 Regions Visited (6) 1200 Robots Destroyed (0) 0 Value Destroyed (0) 0 Prototype IDs (0) 0 Alien Tech Used (0) 0 Bonus (834) 834 TOTAL SCORE: 3534 Bonus ------- Pacifist 834 Cogmind --------- Core Integrity 35/700 Matter 216/300 Energy 100/100 System Corruption 1% Temperature Cool (0) Movement Core (50) Location -7/Factory Parts ------- > --- POWER (1) -------- (None) > --- PROPULSION (5) --- (None) > --- UTILITY (5) ------ (None) > --- WEAPON (2) ------- (None) > --- INVENTORY (5) ---- Xenon Bombardment Thruster Xenon Bombardment Thruster Xenon Bombardment Thruster Peak State ------------ > --- POWER ------------ (None) > --- PROPULSION ------- (None) > --- UTILITY ---------- (None) > --- WEAPON ----------- (None) > --- INVENTORY -------- Xenon Bombardment Thruster Xenon Bombardment Thruster Xenon Bombardment Thruster [Rating: 1] Favorites ----------- Power None Propulsion None Utility None Weapon None Build | -11 -10 -10 -9 -9 -8 -7 ------- Run | Jun Mat Min Mat Min Mat Fac Slots Evolved 6 | . . . 2 . 2 2 Power . | . . . . . . . Propulsion 3 | . . . 1 . 1 1 Utility 3 | . . . 1 . 1 1 Weapon . | . . . . . . . Parts Attached . | . . . . . . . Power . | . . . . . . . Engine . | . . . . . . . Core . | . . . . . . . Reactor . | . . . . . . . Propulsion . | . . . . . . . Treads . | . . . . . . . Leg . | . . . . . . . Wheel . | . . . . . . . Hover . | . . . . . . . Flight . | . . . . . . . Utility . | . . . . . . . Device . | . . . . . . . Storage . | . . . . . . . Processor . | . . . . . . . Hackware . | . . . . . . . Protection . | . . . . . . . Artifact . | . . . . . . . Weapon . | . . . . . . . Energy Gun . | . . . . . . . Energy Cannon . | . . . . . . . Ballistic Gun . | . . . . . . . Ballistic Cannon . | . . . . . . . Launcher . | . . . . . . . Special Weapon . | . . . . . . . Impact Weapon . | . . . . . . . Slashing Weapon . | . . . . . . . Piercing Weapon . | . . . . . . . Special Melee Weapon . | . . . . . . . Unidentified Prototypes . | . . . . . . . Parts Lost . | . . . . . . . Power . | . . . . . . . Propulsion . | . . . . . . . Utility . | . . . . . . . Weapon . | . . . . . . . Highest Loss Streak . | . . . . . . . To Critical Strikes . | . . . . . . . Average Slot Usage (%) . | . . . . . . . Naked Turns 486 | . 41 24 34 76 156 155 Heaviest Build . | . . . . . . . Greatest Support 3 | 3 3 3 3 3 3 3 Greatest Overweight (x) . | . . . . . . . Average Overweight (x) . | . . . . . . . Largest Inventory Capacity 5 | 5 5 5 5 5 5 5 Average Capacity 5 | 5 5 5 5 5 5 5 Most Carried 3 | . . . . . . 3 Average Carried . | . . . . . . 2 Final Capacity 5 | 5 5 5 5 5 5 5 Final Carried 3 | . . . . . . 3 Class Distribution -------------------- 100% | Mutant Dominant Class ---------------- Mutant | -10/Materials Mutant | -10/Mines Mutant | -9/Materials Mutant | -9/Mines Mutant | -8/Materials Mutant | -7/Factory Resources | -11 -10 -10 -9 -9 -8 -7 ----------- Run | Jun Mat Min Mat Min Mat Fac Matter Collected 93 | 62 . . . 29 . 2 Remotely . | . . . . . . . Salvage Created . | . . . . . . . Parts . | . . . . . . . Haulers Intercepted . | . . . . . . . Recyclers Shooed . | . . . . . . . Parts Field Recycled . | . . . . . . . Retrieved Matter . | . . . . . . . Parts Self-Destructed . | . . . . . . . Prevented . | . . . . . . . Kills | -11 -10 -10 -9 -9 -8 -7 ------- Run | Jun Mat Min Mat Min Mat Fac Combat Hostiles Destroyed . | . . . . . . . Classes Destroyed . | . . . . . . . Best Kill Streak . | . . . . . . . Combat Bots Only . | . . . . . . . Max Kills in Single Turn . | . . . . . . . Gunslinging . | . . . . . . . Exploded . | . . . . . . . Melee . | . . . . . . . Uniques/NPCs Destroyed . | . . . . . . . Combat | -11 -10 -10 -9 -9 -8 -7 -------- Run | Jun Mat Min Mat Min Mat Fac Damage Taken 1271 | . 116 49 292 87 62 665 Core 1271 | . 116 49 292 87 62 665 Absorbed by Shields 28 | . . . . . . 28 Core Remaining (%) 56 | 100 . 34 . 5 88 . Volleys Fired . | . . . . . . . Largest . | . . . . . . . Hottest . | . . . . . . . Shots Fired . | . . . . . . . Gun . | . . . . . . . Cannon . | . . . . . . . Launcher . | . . . . . . . Special . | . . . . . . . Kinetic . | . . . . . . . Thermal . | . . . . . . . Explosive . | . . . . . . . Electromagnetic . | . . . . . . . Robot Hit Streak . | . . . . . . . Robot Miss Streak . | . . . . . . . Penetration Max . | . . . . . . . Secondary Targets . | . . . . . . . Shots Hit Robots . | . . . . . . . Core Hits 1 | . 1 . . . . . Critical Kills . | . . . . . . . Critical Parts Destroyed . | . . . . . . . Critical Strikes . | . . . . . . . Melee Attacks . | . . . . . . . Impact . | . . . . . . . Slashing . | . . . . . . . Piercing . | . . . . . . . Sneak Attacks . | . . . . . . . Combat Hostiles . | . . . . . . . Follow-up Attacks . | . . . . . . . Damage Inflicted 33 | . 3 3 . 23 . 4 Guns . | . . . . . . . Cannons . | . . . . . . . Explosions . | . . . . . . . Melee . | . . . . . . . Ramming 33 | . 3 3 . 23 . 4 Kinetic . | . . . . . . . Thermal . | . . . . . . . Explosive . | . . . . . . . Electromagnetic . | . . . . . . . Impact . | . . . . . . . Slashing . | . . . . . . . Piercing . | . . . . . . . Highest Corruption 1 | . . . . . . 1 Average Corruption 1 | . . . . . . 1 Corruption Purged . | . . . . . . . Corruption Blocked . | . . . . . . . Overload Shots . | . . . . . . . Overflow Damage 3 | . . . . 3 . . Projectiles . | . . . . . . . Explosions . | . . . . . . . Melee 3 | . . . . 3 . . Knockbacks . | . . . . . . . Impact . | . . . . . . . Kinetic . | . . . . . . . Secondary . | . . . . . . . Self-Inflicted Damage 15 | . 1 1 . 11 . 2 Shots . | . . . . . . . Rammed 7 | . 1 1 . 4 . 1 Targets Rammed 7 | . 1 1 . 4 . 1 Kicked . | . . . . . . . Crushed . | . . . . . . . Highest Temperature . | . . . . . . . Average Temperature . | . . . . . . . Received Heat Transfer 123 | . . . 45 . 18 60 Siege Activations . | . . . . . . . Robots Corrupted . | . . . . . . . Combat Hostiles . | . . . . . . . Parts Fried . | . . . . . . . Impact Corruptions 1 | . . . . 1 . . Robots Melted . | . . . . . . . Combat Hostiles . | . . . . . . . Parts Melted . | . . . . . . . Heat Transferred . | . . . . . . . Parts Sabotaged . | . . . . . . . Parts Stolen . | . . . . . . . Parts Stripped . | . . . . . . . Power Chain Reactions . | . . . . . . . Missiles Intercepted . | . . . . . . . Alert | -11 -10 -10 -9 -9 -8 -7 ------- Run | Jun Mat Min Mat Min Mat Fac Peak Influence 233 | . . 45 32 12 184 233 Initial 83 | . . . 17 12 4 83 Average 72 | . . 5 24 12 79 138 Maximum Alert Level 1 | . . . . . . 1 Low Security (%) 95 | 100 100 100 100 100 100 85 Level 1 4 | . . . . . . 14 Level 2 . | . . . . . . . Level 3 . | . . . . . . . Level 4 . | . . . . . . . Level 5 . | . . . . . . . High Security . | . . . . . . . Max Security . | . . . . . . . Squads Dispatched 2 | . . . . . 2 . Investigation . | . . . . . . . Extermination . | . . . . . . . Reinforcement 2 | . . . . . 2 . Assault . | . . . . . . . Garrison . | . . . . . . . Intercept . | . . . . . . . Searches Triggered . | . . . . . . . Construction Impeded . | . . . . . . . Haulers Reinforced . | . . . . . . . Active Scanning Responses . | . . . . . . . Cargo Convoy Interrupts . | . . . . . . . Stealth | -11 -10 -10 -9 -9 -8 -7 --------- Run | Jun Mat Min Mat Min Mat Fac Distress Signals 2 | . 1 . . . 1 . Communications Jammed . | . . . . . . . Distress Signals . | . . . . . . . Times Spotted 51 | . 7 3 12 4 9 16 Peak Tracking Total 12 | . 7 3 12 4 5 7 Tactical Retreats 7 | . . 1 . . 2 4 Traps | -11 -10 -10 -9 -9 -8 -7 ------- Run | Jun Mat Min Mat Min Mat Fac Traps Triggered 1 | . . . . . . 1 Indirectly . | . . . . . . . Trap Hack Attempts . | . . . . . . . Triggered . | . . . . . . . Disarmed . | . . . . . . . Reprogrammed . | . . . . . . . Reused . | . . . . . . . Traps Extracted . | . . . . . . . Installed . | . . . . . . . Triggered . | . . . . . . . Machines | -11 -10 -10 -9 -9 -8 -7 ---------- Run | Jun Mat Min Mat Min Mat Fac Machines Disabled . | . . . . . . . Max in Single Turn . | . . . . . . . Machines Repaired . | . . . . . . . Machines Sabotaged . | . . . . . . . Overloaded Fab Kills . | . . . . . . . Hacking | -11 -10 -10 -9 -9 -8 -7 --------- Run | Jun Mat Min Mat Min Mat Fac Machines Accessed . | . . . . . . . Terminals . | . . . . . . . Fabricators . | . . . . . . . Repair Stations . | . . . . . . . Recycling Units . | . . . . . . . Scanalyzers . | . . . . . . . Garrison Access . | . . . . . . . Total Hacks . | . . . . . . . Successful . | . . . . . . . Failed . | . . . . . . . Catastrophic . | . . . . . . . Database Lockouts . | . . . . . . . Manual . | . . . . . . . Terminals . | . . . . . . . Fabricators . | . . . . . . . Repair Stations . | . . . . . . . Recycling Units . | . . . . . . . Scanalyzers . | . . . . . . . Garrison Access . | . . . . . . . Terminal Hacks . | . . . . . . . Fabricator Hacks . | . . . . . . . Repair Station Hacks . | . . . . . . . Recycling Unit Hacks . | . . . . . . . Scanalyzer . | . . . . . . . Garrison Access Hacks . | . . . . . . . Unauthorized Hacks . | . . . . . . . Terminals . | . . . . . . . Fabricators . | . . . . . . . Repair Stations . | . . . . . . . Recycling Units . | . . . . . . . Scanalyzers . | . . . . . . . Garrison Access . | . . . . . . . Data Cores Recovered . | . . . . . . . Used . | . . . . . . . Hacking Detections . | . . . . . . . Full Trace Events . | . . . . . . . Feedback Events . | . . . . . . . Feedback Blocked . | . . . . . . . Robot Schematics Acquired . | . . . . . . . Robots Built . | . . . . . . . Authchips . | . . . . . . . Time . | . . . . . . . Total Robot Build Rating . | . . . . . . . Part Schematics Acquired . | . . . . . . . Parts Built . | . . . . . . . Authchips . | . . . . . . . Time . | . . . . . . . Total Part Build Rating . | . . . . . . . Parts Repaired . | . . . . . . . Time . | . . . . . . . Parts Recycled . | . . . . . . . Recycled Matter . | . . . . . . . Retrieved Matter . | . . . . . . . Retrieved Components . | . . . . . . . Parts Scanalyzed . | . . . . . . . Part Schematics Acquired . | . . . . . . . Parts Damaged . | . . . . . . . Bothacking | -11 -10 -10 -9 -9 -8 -7 ------------ Run | Jun Mat Min Mat Min Mat Fac Used RIF Installer . | . . . . . . . Robots Hacked . | . . . . . . . Non-combat . | . . . . . . . Combat . | . . . . . . . Robot Hacks Applied . | . . . . . . . Relay Couplers Released . | . . . . . . . Fabnet Peak Effective % . | . . . . . . . Robots Rewired . | . . . . . . . Allies Hacked . | . . . . . . . Hacks Repelled . | . . . . . . . Allies | -11 -10 -10 -9 -9 -8 -7 -------- Run | Jun Mat Min Mat Min Mat Fac Total Allies 2 | . . . . 2 . . Largest Group 2 | . . . . 2 . . Highest-Rated Group 43 | . . . . 43 . . Highest-Rated Ally 31 | . . . . 31 . . Total Orders . | . . . . . . . Ally Attacks . | . . . . . . . Total Damage . | . . . . . . . Kills . | . . . . . . . Allies Corrupted . | . . . . . . . Allies Melted . | . . . . . . . Intel | -11 -10 -10 -9 -9 -8 -7 ------- Run | Jun Mat Min Mat Min Mat Fac Robot Analysis Total . | . . . . . . . Derelict Logs Recovered . | . . . . . . . Drone Launches . | . . . . . . . Drone Recoveries . | . . . . . . . Exploration | -11 -10 -10 -9 -9 -8 -7 ------------- Run | Jun Mat Min Mat Min Mat Fac Turns Passed 495 | 9 41 24 34 76 156 155 Spaces Moved 959 | 19 80 47 68 144 311 290 Core 959 | 19 80 47 68 144 311 290 Treads . | . . . . . . . Legs . | . . . . . . . Wheels . | . . . . . . . Hover . | . . . . . . . Flight . | . . . . . . . Fastest Speed 50 | 50 50 50 50 50 50 50 Average Speed 50 | 50 50 50 50 50 50 50 Slowest Speed 50 | 50 50 50 50 50 50 50 Overloaded Moves . | . . . . . . . Propulsion Burnouts . | . . . . . . . Robots Hopped . | . . . . . . . Cave-ins Triggered . | . . . . . . . Exploration Rate (%) 21 | 3 26 17 14 43 33 16 Regions Visited 6 Branch Regions 2 Pre-discovered Areas . | . . . . . . . Known Exits Taken . | . . . . . . . Unknown Exits Taken 6 | 1 1 1 1 1 1 . Scrap Searched 2 | . . . . 2 . . Spaces Dug . | . . . . . . . Terrain Destroyed . | . . . . . . . Melee . | . . . . . . . Projectile . | . . . . . . . AOE . | . . . . . . . Terrain Rammed . | . . . . . . . Walls Destroyed . | . . . . . . . Machines Disabled . | . . . . . . . Actions | -11 -10 -10 -9 -9 -8 -7 --------- Run | Jun Mat Min Mat Min Mat Fac Total 968 | 18 80 47 67 147 310 299 Wait . | . . . . . . . Move 954 | 18 79 47 67 143 310 290 Hop . | . . . . . . . Pick Up 3 | . . . . . . 3 Fast Attach . | . . . . . . . Attach . | . . . . . . . Detach . | . . . . . . . Swap . | . . . . . . . Drop . | . . . . . . . Fire . | . . . . . . . Melee . | . . . . . . . Ram 6 | . 1 . . 4 . 1 Kick . | . . . . . . . Crush . | . . . . . . . Escape Stasis 5 | . . . . . . 5 Rewire . | . . . . . . . Trap . | . . . . . . . Miscellaneous . | . . . . . . . Route ------- -11/Junkyard -10/Materials -10/Mines -9/Materials -9/Mines -8/Materials (discovered 2 exits: *Fac / [*Sto]) -7/Factory History --------- Turn | Location | Event 5 | -11/Junkyard | Discovered new exit (range 12) 10 | -11/Junkyard | Entered Materials 48 | -10/Materials | Discovered new exit (range 8) 51 | -10/Materials | Entered Mines 59 | -10/Mines | Core integrity fell below 50% 71 | -10/Mines | Discovered new exit (range 10) 75 | -10/Mines | Entered Materials 75 | -9/Materials | Evolved 2 slots: Propulsion x1, Utility x1 101 | -9/Materials | Core integrity fell below 50% 103 | -9/Materials | Discovered new exit (range 14) 109 | -9/Materials | Entered Mines 178 | -9/Mines | Discovered new exit (range 13) 182 | -9/Mines | Core integrity fell below 20% 185 | -9/Mines | Entered Materials 185 | -8/Materials | Evolved 2 slots: Propulsion x1, Utility x1 305 | -8/Materials | Build established: Mutant 336 | -8/Materials | Discovered new exit (range 3) 336 | -8/Materials | Discovered new exit (range 9) 341 | -8/Materials | Entered Factory 341 | -7/Factory | Evolved 2 slots: Propulsion x1, Utility x1 445 | -7/Factory | Core integrity fell below 50% 451 | -7/Factory | Core integrity fell below 20% 496 | -7/Factory | Self-destructed Last Messages --------------- 00433_ P-60 Hacker resets U-05 Engineer, system corruption cleaned. 00435_ K-01 Serf collects debris. 00435_ Penetrated by Slug. 00435_ Knocked back. 00439_ Triggered Stasis Trap. 00439_ A bubble of rippling energy engulfs the area. 00439_ Field strength at 94. 00440_ Field strength at 88. 00441_ Field strength at 82. 00442_ Field strength at 76. 00443_ Field strength at 58. 00444_ Field strength at 52. 00444_ M-13 Machinist destroyed. 00444_ Knocked back. 00446_ Slammed into K-01 Serf. 00447_ Acquired 2 matter. 00448_ K-01 Serf collects debris. 00448_ Knocked back. 00450_ Penetrated by Slug. 00450_ Knocked back. Map ----- +----------------------------------------------------+ | ???????????????????????????????# " | | ???????????????????????????????# [!! " | | ???????????????????????????????# [! | | ???????????????????????????????# /! " | | ???????????????????????????????# " | | ???????????????????????????????# [ " | | ???????????????????????????????? " | | ?????????????????????????????????? | | ???????????????????????????????????? | | ????????????#########???????##########+# | | ????????????# #???????# | | ????????????# #???????# | | ????????????# #???????# | | ????????????# #???????# " " " " | | ????????????# ##??????# " " " " | | ????????????### T#??????# " " " " | | ??????????????# #??????# " " " " | | ??????????????# ##??????# " " " " | | ??????????????# #???????# " " " "^ | | ??????????????# #???????# " " " " | | ??????????????# #???????# " " " " | | ??????????????# #???????# " " " " | | ??????????????# #???????# | | ???????######## #???????# | | ???????# #???????# !! | | ???????# @ #??????## ! | | ???????# #??????+ ! | | ???????# #??????## | | ???????# #???????# ] = | | ???????###+#### #???????# ###### | | ??????????????# #???????# #????? | | ??????????????# #???????# #????? | | ??????????????+ #???????# #????? | | ??????????????# #???????# #????? | | ??????????????# #???????# +????? | | ?????????? ???# #???????# #????? | | ????????" ""??# s#???????# #????? | | ????????? """?# s###+##### #????? | | ???????????"" # s #????? | | ???????????? # #????? | | ????????????? + t #????? | | ??????????????# #????? | | ??????????????# #????? | | ???????????######+#+######### #????? | | ???????????# #???# #????? | | ???????????# """ #???# ???? | | ???????????# """"" #???# | | ???????????# """"" +??? | | ???????????# #???# | | ???????????# """ #???# =[ | +----------------------------------------------------+ Best States ------------- Heat Dissipation 34 Energy Generation 5 Energy Capacity 100 Matter Stores 216 Matter Capacity 300 Sight Range 16 Terrain Scan Density 10 Evasion (%) 50 Item Schematics ----------------- None Robot Schematics ------------------ None Fabricated ------------ Nothing Alien Tech Used ----------------- None Achievements -------------- None Challenges ------------ None Game ------ Seed RemoteRestorationGenerator Manual? 0 Play Time 00:05:59 Cumulative 122.7 hours Start 2023.04.17 @ 23:29:21 End 2023.04.17 @ 23:35:42 Sessions 1 Manual Loads 0 Difficulty Rogue Special Mode None Game No. 348 Rogue 348 Adventurer 0 Explorer 0 Win Type - Total 4 Types 4/0/0/0/0/0/0/0/0 Lore% 60 Gallery% 61 Achievement% 54 Wizard Run 0 Options --------- ASCII 0 Keyboard 0 Movement Numpad Keybinds 0 Fullscreen 1 Font 12/Smallcaps Map View 83x54 Tactical HUD 1 Map Filters NONE Filters NONE Steam 1 RUN: e24fc273-8098-4002-a4d3-4c4a6c020096